lending/lending_fUSD_20240610
["ID","MTS","AMOUNT","RATE_DAILY","PERIOD"]
[328939468,1718016965469,-203.94072812,0.00013998,2]
[328939469,1718016965501,-280.01097109,0.00013998,2]
[328939470,1718016965536,-1251.56475616,0.00013998,2]
[328939471,1718016965567,-1052.6686363,0.00013998,2]
[328939472,1718016965599,-268.92159374,0.00013998,2]
[328939473,1718016965633,-155.0,0.00013998,2]
[328939474,1718016965664,-441.5222992,0.00013998,2]
[328939475,1718016965696,-162.54913182,0.00013998,2]
[328939476,1718016965727,-1170.64918668,0.00013998,2]
[328939477,1718016965759,-4453.43741383,0.00013999,2]
[328939478,1718016965791,-191.03600112,0.00013999,2]
[328939479,1718016965825,-4962.33428717,0.00013999,2]
[328939480,1718017148112,-812.39306785,0.00013297,2]
[328939481,1718017198968,-375.2138643,0.00013297,2]
[328939482,1718017202879,150.0,0.00013297,2]
[328939483,1718017203087,150.0,0.00013297,2]
[328939484,1718017203521,150.0,0.00013297,2]
[328939485,1718017203702,150.0,0.00013297,2]
[328939486,1718017204016,192.44088144,0.00013297,2]
[328939487,1718017212255,299.75188144,0.00013297,2]
[328939488,1718017214675,157.37950852,0.00013297,2]
[328939489,1718017222994,-380.49861321,0.00013297,2]
[328939491,1718017411633,150.0,9.973e-05,2]
[328939492,1718017411658,150.0,9.973e-05,2]
[328939493,1718017411683,150.0,9.973e-05,2]
[328939494,1718017411712,150.0,9.973e-05,2]
[328939495,1718017411737,150.0,9.973e-05,2]
[328939496,1718017411764,150.0,9.973e-05,2]
[328939497,1718017411791,150.0,9.973e-05,2]
[328939498,1718017411816,150.0,9.973e-05,2]
[328939499,1718017411841,150.0,9.973e-05,2]
[328939500,1718017411867,150.0,9.973e-05,2]
[328939501,1718017411892,150.0,9.973e-05,2]
[328939502,1718017411918,150.0,9.973e-05,2]
[328939503,1718017412182,150.0,9.973e-05,2]
[328939504,1718017412211,150.0,9.973e-05,2]
[328939505,1718017412238,150.0,9.973e-05,2]
[328939506,1718017412263,150.0,9.973e-05,2]
[328939507,1718017412286,150.0,9.973e-05,2]
[328939508,1718017412315,3.55168877,9.973e-05,2]
[328939509,1718017412886,150.0,0.00011966,2]
[328939510,1718017412912,150.0,0.00011966,2]
[328939511,1718017412936,124.35038744,0.00011966,2]
[328939512,1718017416572,334.73273971,0.00011833,2]
[328939513,1718017427572,150.0,9.973e-05,2]
[328939514,1718017427597,150.0,9.973e-05,2]
[328939515,1718017427622,150.0,9.973e-05,2]
[328939516,1718017427647,184.71676313,9.973e-05,2]
[328939517,1718017427673,150.0,9.973e-05,2]
[328939518,1718017427697,1768.83492564,9.973e-05,2]
[328939519,1718017430234,155.0,0.00011833,2]
[328939520,1718017430805,299.75188144,0.00011833,2]
[328939521,1718017431651,150.0,0.00011833,2]
[328939522,1718017431674,5.0,0.00011833,2]
[328939523,1718017432518,145.0,0.00011833,2]
[328939524,1718017432543,144.91140799,0.00011833,2]
[328939525,1718017433176,5.08859201,0.00011833,2]
[328939526,1718017433199,149.91140799,0.00011833,2]
[328939527,1718017434061,0.08859201,0.00011833,2]
[328939528,1718017434086,150.0,0.00011833,2]
[328939529,1718017434110,30.60536291,0.00011833,2]
[328939530,1718017434816,119.39463709,0.00011966,2]
[328939531,1718017434840,150.0,0.00011966,2]
[328939532,1718017434867,150.0,0.00011966,2]
[328939533,1718017434893,4.95575035,0.00011966,2]
[328939534,1718017435831,150.0,0.00011833,2]
[328939535,1718017435856,150.0,0.00011833,2]
[328939536,1718017435879,62.98346764,0.00011833,2]
[328939537,1718017436130,150.0,0.00011833,2]
[328939538,1718017436152,150.0,0.00011833,2]
[328939539,1718017436173,150.0,0.00011833,2]
[328939540,1718017436195,150.0,0.00011833,2]
[328939541,1718017436216,150.0,0.00011833,2]
[328939542,1718017436240,150.0,0.00011833,2]
[328939543,1718017436262,47.931432,0.00011833,2]
[328939544,1718017438381,551.33947708,0.00011833,2]
[328939545,1718017441769,150.0,0.00011833,2]
[328939546,1718017441796,1213.64758323,0.00011833,2]
[328939547,1718017443194,150.0,0.00011833,2]
[328939548,1718017443218,14944.39808174,0.00011833,2]
[328939549,1718017443243,5000.0,0.00011833,2]
[328939550,1718017443267,4568.99102878,0.00011833,2]
[328939551,1718017443572,431.00897122,8.875e-05,2]
[328939552,1718017443598,2122.54271755,8.875e-05,2]
[328939553,1718017446520,150.0,0.00011833,2]
[328939554,1718017446545,139.91140799,0.00011833,2]
[328939555,1718017447204,92.14937402,0.00011833,2]
[328939556,1718017447229,2877.45728245,0.00011833,2]
[328939557,1718017447256,5000.0,0.00011833,2]
[328939558,1718017447282,5000.0,0.00011833,2]
[328939559,1718017447310,5000.0,0.00011833,2]
[328939560,1718017447335,1809.86760104,0.00011833,2]
[328939561,1718017447654,155.0,0.00011833,2]
[328939562,1718017448202,155.0,0.00011833,2]
[328939563,1718017450789,299.75188144,0.00011833,2]
[328939564,1718017450831,424.35038744,0.00011966,2]
[328939565,1718017452055,181.04807537,0.00011833,2]
[328939566,1718017453199,155.0,0.00011833,2]
[328939567,1718017453834,362.98346764,0.00011833,2]
[328939568,1718017456076,947.931432,0.00011833,2]
[328939569,1718017456391,509.06715507,0.00011833,2]
[328939570,1718017456418,43.47720442,0.00011833,2]
[328939571,1718017457392,4956.52279558,0.00011833,2]
[328939572,1718017457421,5000.0,0.00011833,2]
[328939573,1718017457451,5000.0,0.00011833,2]
[328939574,1718017457481,5000.0,0.00011833,2]
[328939575,1718017457508,5000.0,0.00011833,2]
[328939576,1718017457537,5000.0,0.00011833,2]
[328939577,1718017457564,5000.0,0.00011833,2]
[328939578,1718017457590,5000.0,0.00011833,2]
[328939579,1718017457617,221.8166418,0.00011833,2]
[328939580,1718017458246,-150.0,0.00011833,2]
[328939581,1718017460769,2553.55168877,8.875e-05,2]
[328939582,1718017473568,150.0,8.875e-05,2]
[328939583,1718017473594,150.0,8.875e-05,2]
[328939584,1718017473620,156.40620763,8.875e-05,2]
[328939585,1718017473645,150.0,8.875e-05,2]
[328939586,1718017473670,150.0,8.875e-05,2]
[328939587,1718017473694,150.0,8.875e-05,2]
[328939588,1718017473720,150.0,8.875e-05,2]
[328939589,1718017473747,150.0,8.875e-05,2]
[328939590,1718017473772,150.0,8.875e-05,2]
[328939591,1718017473797,89.85417548,8.875e-05,2]
[328939592,1718017490720,150.0,8.875e-05,2]
[328939593,1718017490748,5.0,8.875e-05,2]
[328939594,1718017491583,145.0,6.656e-05,2]
[328939595,1718017491608,150.0,6.656e-05,2]
[328939596,1718017491633,150.0,6.656e-05,2]
[328939597,1718017491657,150.0,6.656e-05,2]
[328939598,1718017491681,150.0,6.656e-05,2]
[328939599,1718017491704,150.0,6.656e-05,2]
[328939600,1718017491727,150.0,6.656e-05,2]
[328939601,1718017491927,150.0,6.656e-05,2]
[328939602,1718017491953,150.0,6.656e-05,2]
[328939603,1718017491978,5.0,6.656e-05,2]
[328939604,1718017495830,150.0,6.655e-05,2]
[328939605,1718017495856,118.74584708,6.655e-05,2]
[328939606,1718017496332,31.25415292,8.875e-05,2]
[328939607,1718017496359,150.0,8.875e-05,2]
[328939608,1718017496384,150.0,8.875e-05,2]
[328939609,1718017496409,31.72931472,8.875e-05,2]
[328939610,1718017497044,118.27068528,8.875e-05,2]
[328939611,1718017497069,150.0,8.875e-05,2]
[328939612,1718017497094,21.64072271,8.875e-05,2]
[328939613,1718017497420,-200.0,0.00010648,2]
[328939614,1718017498604,-195.91472603,0.00010648,2]
[328939615,1718017499715,-52.99340738,0.00010648,2]
[328939616,1718017499743,-147.00659262,0.00010649,2]
[328939617,1718017500156,188.50510181,8.875e-05,2]
[328939618,1718017500190,1175.14248142,8.875e-05,2]
[328939619,1718017500645,-200.0,0.00010649,2]
[328939620,1718017501416,-77.34379482,0.00010649,2]
[328939621,1718017501442,-122.65620518,0.00011831,2]
[328939622,1718017502072,-200.0,0.00011831,2]
[328939623,1718017502573,947.931432,8.875e-05,2]
[328939624,1718017502739,-200.0,0.00011831,2]
[328939626,1718017503348,-136.42224781,0.00011831,2]
[328939627,1718017503377,-63.57775219,0.00011832,2]
[328939628,1718017503925,-200.0,0.00011832,2]
[328939629,1718017504890,-33.23565083,0.00011832,2]
[328939630,1718017504917,-166.76434917,0.00011833,2]
[328939631,1718017505453,-200.0,0.00011833,2]
[328939632,1718017505718,150.0,8.875e-05,2]
[328939633,1718017505751,150.0,8.875e-05,2]
[328939634,1718017505782,150.0,8.875e-05,2]
[328939635,1718017505811,150.0,8.875e-05,2]
[328939636,1718017505841,150.0,8.875e-05,2]
[328939637,1718017505868,150.0,8.875e-05,2]
[328939638,1718017505896,150.0,8.875e-05,2]
[328939639,1718017505925,150.0,8.875e-05,2]
[328939640,1718017505961,23463.38911052,8.875e-05,2]
[328939641,1718017506013,-200.0,0.00011833,2]
[328939642,1718017506091,-200.0,0.00011833,2]
[328939643,1718017506478,-200.0,0.00011833,2]
[328939644,1718017507046,-200.0,0.00011833,2]
[328939645,1718017508013,-200.0,0.00011833,2]
[328939646,1718017508656,-200.0,0.00011833,2]
[328939647,1718017509356,-200.0,0.00011833,2]
[328939648,1718017509420,-200.0,0.00011833,2]
[328939649,1718017509577,150.0,6.656e-05,2]
[328939650,1718017509606,150.0,6.656e-05,2]
[328939651,1718017509634,150.0,6.656e-05,2]
[328939652,1718017509662,150.0,6.656e-05,2]
[328939653,1718017509691,263.06383253,6.656e-05,2]
[328939654,1718017509720,150.0,6.656e-05,2]
[328939655,1718017509751,150.0,6.656e-05,2]
[328939656,1718017509779,150.0,6.656e-05,2]
[328939657,1718017509807,150.0,6.656e-05,2]
[328939658,1718017509837,150.0,6.656e-05,2]
[328939659,1718017509864,150.0,6.656e-05,2]
[328939660,1718017509890,150.0,6.656e-05,2]
[328939661,1718017509918,71.6529306,6.656e-05,2]
[328939662,1718017509955,-200.0,0.00011833,2]
[328939663,1718017510266,-200.0,0.00011833,2]
[328939664,1718017510329,-200.0,0.00011833,2]
[328939665,1718017510721,150.0,8.875e-05,2]
[328939666,1718017510753,5.0,8.875e-05,2]
[328939667,1718017510794,-200.0,0.00011833,2]
[328939668,1718017511054,-200.0,0.00011833,2]
[328939669,1718017511452,-200.0,0.00011833,2]
[328939670,1718017511682,-200.0,0.00011833,2]
[328939671,1718017511868,-200.0,0.00011833,2]
[328939672,1718017512163,-200.0,0.00011833,2]
[328939673,1718017512476,-200.0,0.00011833,2]
[328939674,1718017512775,-200.0,0.00011833,2]
[328939675,1718017513041,145.0,8.875e-05,2]
[328939676,1718017513067,150.0,8.875e-05,2]
[328939677,1718017513092,140.3429353,8.875e-05,2]
[328939678,1718017513122,-200.0,0.00011833,2]
[328939679,1718017513417,-200.0,0.00011833,2]
[328939680,1718017513960,9.6570647,8.875e-05,2]
[328939681,1718017513985,150.0,8.875e-05,2]
[328939682,1718017514011,150.0,8.875e-05,2]
[328939683,1718017514044,53.32640294,8.875e-05,2]
[328939684,1718017514179,1363.64758323,8.875e-05,2]
[328939685,1718017514576,150.0,8.875e-05,2]
[328939686,1718017514609,797.931432,8.875e-05,2]
[328939687,1718017517917,150.0,8.875e-05,2]
[328939688,1718017517944,150.0,8.875e-05,2]
[328939689,1718017517972,150.0,8.875e-05,2]
[328939690,1718017517999,150.0,8.875e-05,2]
[328939691,1718017518028,150.0,8.875e-05,2]
[328939692,1718017518055,150.0,8.875e-05,2]
[328939693,1718017518083,150.0,8.875e-05,2]
[328939694,1718017518110,150.0,8.875e-05,2]
[328939695,1718017518139,150.0,8.875e-05,2]
[328939696,1718017518167,150.0,8.875e-05,2]
[328939697,1718017518195,150.0,8.875e-05,2]
[328939698,1718017518225,150.0,8.875e-05,2]
[328939699,1718017518253,150.0,8.875e-05,2]
[328939700,1718017518280,150.0,8.875e-05,2]
[328939701,1718017518308,150.0,8.875e-05,2]
[328939702,1718017518336,150.0,8.875e-05,2]
[328939703,1718017518365,150.0,8.875e-05,2]
[328939704,1718017518393,150.0,8.875e-05,2]
[328939705,1718017518420,150.0,8.875e-05,2]
[328939706,1718017518446,150.0,8.875e-05,2]
[328939707,1718017518473,150.0,8.875e-05,2]
[328939708,1718017518499,150.0,8.875e-05,2]
[328939709,1718017518523,150.0,8.875e-05,2]
[328939710,1718017518548,150.0,8.875e-05,2]
[328939711,1718017518574,150.0,8.875e-05,2]
[328939712,1718017518601,150.0,8.875e-05,2]
[328939713,1718017518628,150.0,8.875e-05,2]
[328939714,1718017518654,150.0,8.875e-05,2]
[328939715,1718017518681,150.0,8.875e-05,2]
[328939716,1718017518708,150.0,8.875e-05,2]
[328939717,1718017518735,150.0,8.875e-05,2]
[328939718,1718017518775,47335.35954577,8.875e-05,2]
[328939719,1718017518834,150.0,8.875e-05,2]
[328939720,1718017518859,5.0,8.875e-05,2]
[328939721,1718017520806,150.0,8.875e-05,2]
[328939722,1718017520834,150.0,8.875e-05,2]
[328939723,1718017520861,150.0,8.875e-05,2]
[328939724,1718017520888,150.0,8.875e-05,2]
[328939725,1718017520915,150.0,8.875e-05,2]
[328939726,1718017520939,150.0,8.875e-05,2]
[328939727,1718017520968,295.25230321,8.875e-05,2]
[328939728,1718017520994,150.0,8.875e-05,2]
[328939729,1718017521029,11622.76981747,8.875e-05,2]
[328939730,1718017521072,155.0,8.875e-05,2]
[328939731,1718017525666,150.0,8.431e-05,2]
[328939732,1718017525691,295.0,8.431e-05,2]
[328939733,1718017525725,512.98460544,8.431e-05,2]
[328939734,1718017528717,155.0,8.875e-05,2]
[328939735,1718017532168,208.84696956,8.875e-05,2]
[328939736,1718017532212,1363.64758323,8.875e-05,2]
[328939737,1718017532371,362.98346764,8.875e-05,2]
[328939738,1718017532576,947.931432,8.875e-05,2]
[328939739,1718017533044,434.91140799,8.875e-05,2]
[328939740,1718017535718,319.40266171,8.875e-05,2]
[328939741,1718017537665,889.57530373,8.431e-05,2]
[328939742,1718017542066,266.27324862,8.875e-05,2]
[328939743,1718017547597,450.0,6.656e-05,2]
[328939744,1718017548724,155.0,8.875e-05,2]
[328939745,1718017550389,175.97744575,8.875e-05,2]
[328939746,1718017553716,8555.58148979,8.875e-05,2]
[328939747,1718017553957,1721.8166418,8.875e-05,2]
[328939748,1718017554254,1363.64758323,8.875e-05,2]
[328939749,1718017555157,-1000.0,0.00011673,2]
[328939750,1718017555776,-108.382344,0.00011673,2]
[328939751,1718017555800,-626.22089567,0.00011731,2]
[328939752,1718017555823,-265.39676033,0.00011731,2]
[328939753,1718017556099,-1000.0,0.00011731,2]
[328939754,1718017556406,-11.85501361,0.00011731,2]
[328939755,1718017556429,-206.03170677,0.00011732,2]
[328939756,1718017556452,-782.11327962,0.00011733,2]
[328939757,1718017556829,-1000.0,0.00011733,2]
[328939758,1718017557283,-363.46789622,0.00011733,2]
[328939759,1718017557307,-636.53210378,0.00011832,2]
[328939760,1718017557708,-640.71967016,0.00011832,2]
[328939761,1718017557733,-359.28032984,0.00011832,2]
[328939762,1718017557966,-87.23373303,0.00011832,2]
[328939763,1718017557990,-912.76626697,0.00011832,2]
[328939764,1718017558370,-140.34287756,0.00011832,2]
[328939765,1718017558395,-316.26257579,0.00011833,2]
[328939766,1718017558420,-543.39454665,0.00011833,2]
[328939767,1718017558665,-1000.0,0.00011833,2]
[328939768,1718017558973,-1000.0,0.00011833,2]
[328939769,1718017559333,-1000.0,0.00011833,2]
[328939770,1718017559642,-1000.0,0.00011833,2]
[328939771,1718017566736,155.0,8.875e-05,2]
[328939772,1718017569921,9389.65149384,8.875e-05,2]
[328939773,1718017572084,180.69395492,0.0001,2]
[328939774,1718017572183,715.53876683,8.875e-05,2]
[328939775,1718017575305,299.75188144,0.0001,2]
[328939776,1718017579079,947.931432,8.875e-05,2]
[328939777,1718017580764,551.33947708,0.0001,2]
[328939778,1718017582948,219.04401576,8.875e-05,2]
[328939779,1718017593086,947.931432,8.875e-05,2]
[328939780,1718017593303,385.16807598,0.0001,2]
[328939781,1718017600576,451.65752635,0.0001,2]
[328939782,1718017611079,947.931432,8.875e-05,2]
[328939783,1718017629090,975.32667165,8.875e-05,2]
[328939784,1718017637185,-663.51,0.00011486,2]
[328939785,1718017637208,-1078.71954708,0.00011631,2]
[328939786,1718017637232,-2040.09627783,0.00011833,2]
[328939787,1718017637255,-1299.42409849,0.0001263,2]
[328939788,1718017637278,-284.38104492,0.00013008,2]
[328939789,1718017637302,-1306.53032106,0.00013031,2]
[328939792,1718017712380,-424.35038744,0.00012769,2]
[328939793,1718017712405,-2612.62805845,0.0001277,2]
[328939794,1718017712428,-200.37712578,0.00013231,2]
[328939795,1718017712451,-2138.20030163,0.00013295,2]
[328939796,1718017712473,-506.80366576,0.00013295,2]
[328939797,1718017712496,-155.0,0.00013295,2]
[328939798,1718017712522,-490.2568696,0.00013295,2]
[328939799,1718017712546,-155.0,0.00013295,2]
[328939800,1718017712571,-307.45960582,0.00013295,2]
[328939801,1718017712593,-201.67489333,0.00013295,2]
[328939802,1718017712616,-1211.12212295,0.00013295,2]
[328939803,1718017712639,-400.0,0.00013295,2]
[328939804,1718017712661,-263.84998264,0.00013295,2]
[328939805,1718017712685,-1067.75598538,0.00013295,2]
[328939806,1718017712709,-2194.64407392,0.00013295,2]
[328939807,1718017712732,-1249.34786736,0.00013296,2]
[328939808,1718017712756,-1625.30453105,0.00013296,2]
[328939809,1718017712780,-718.86146872,0.00013297,2]
[328939810,1718017712807,-217.67580566,0.00013297,2]
[328939811,1718017712830,-155.04215131,0.00013297,2]
[328939812,1718017712854,-500.0,0.00013297,2]
[328939813,1718017712878,-500.0,0.00013297,2]
[328939814,1718017712906,-500.0,0.00013297,2]
[328939815,1718017712929,-500.0,0.00013297,2]
[328939816,1718017712953,-500.0,0.00013297,2]
[328939817,1718017712976,-500.0,0.00013297,2]
[328939818,1718017713002,-823.0,0.00013297,2]
[328939819,1718017713027,-1053.10914453,0.0001355,2]
[328939820,1718017713052,-206.03170677,0.00013551,2]
[328939821,1718017713075,-669.96579635,0.00013551,2]
[328939822,1718017713101,-13952.53845555,0.00013552,2]
[328939823,1718017721117,-9947.46154445,0.00013552,2]
[328939824,1718017721142,-52.53845555,0.00013637,2]
[328939827,1718017732649,-424.35038744,0.00012508,2]
[328939828,1718017732674,-1014.24874889,0.00012768,2]
[328939829,1718017732699,-1186.72194235,0.0001277,2]
[328939830,1718017732722,-504.50154445,0.00013637,2]
[328939831,1718017732746,-203.33,0.00013699,2]
[328939832,1718017732772,-663.51,0.0001375,2]
[328939833,1718017732797,-178.29,0.00013771,2]
[328939834,1718017732826,-383.53,0.00013771,2]
[328939835,1718017732851,-301.09587522,0.00013773,2]
[328939836,1718017732875,-140.42150165,0.00013898,2]
[328939837,1718017749288,-200.0,0.00012508,2]
[328939839,1718017759093,-224.35038744,0.00012508,2]
[328939840,1718017759116,-36.98121182,0.00013898,2]
[328939841,1718017759137,-268.60222202,0.00013899,2]
[328939842,1718017759157,-296.73266768,0.00013899,2]
[328939843,1718017759178,-85.50488864,0.000139,2]
[328939844,1718017766148,-181.86007849,0.000139,2]
[328939845,1718017766171,-23179.5419,0.000139,2]
[328939846,1718017766192,-2077.46,0.000139,2]
[328939847,1718017766214,-2132.26302407,0.00013989,2]
[328939848,1718017766236,-155.0,0.00013997,2]
[328939849,1718017766258,-157.53992812,0.00013998,2]
[328939850,1718017766283,-174.0382243,0.00013998,2]
[328939851,1718017766306,-247.75343979,0.00013998,2]
[328939852,1718017766329,-158.66411904,0.00013999,2]
[328939853,1718017766353,-3100.10909556,0.00013999,2]
[328939854,1718017766383,-94130.61019063,0.00014,2]
[328939856,1718017832761,-272.27757308,0.00013999,2]
[328939857,1718017832771,-11065.72256338,0.00014,2]
[328939858,1718017832786,-5222.77484453,0.00014,2]
[328939861,1718017832799,-8811.24858087,0.00014,2]
[328939866,1718017833164,-2015.05034501,0.00014,2]
[328939867,1718017833569,-364.67036088,0.00014,2]
[328939868,1718017833600,-406.81650572,0.00014,2]
[328939922,1718017838616,-3088.14941789,0.00014,2]
[328939926,1718017838629,-5392.16334317,0.00014,2]
[328939934,1718017839136,-10195.48,0.00014,2]
[328939935,1718017839150,-14795.95386704,0.00014,2]
[328939936,1718017839164,-1309.44028988,0.00014,2]
[328939937,1718017840540,-3793.98626351,0.00014,2]
[328939938,1718017840553,-498.35828287,0.00014,2]
[328939941,1718017841051,-4483.84180222,0.00014,2]
[328939942,1718017841064,-3123.53,0.00014,2]
[328939943,1718017841076,-3642.672542,0.00014,2]
[328939944,1718017841088,-19660.40083014,0.00014,2]
[328939945,1718017842902,-1730.84596,0.00014,2]
[328939952,1718017843365,-3561.66984906,0.00014,2]
[328939953,1718017843379,-2287.26302407,0.00014,2]
[328939954,1718017843391,-330.1716032,0.00014,2]
[328939955,1718017843402,-279.01791095,0.00014,2]
[328939956,1718017843412,-861.2,0.00014,2]
[328939957,1718017843841,-3107.97588151,0.00014,2]
[328939958,1718017843857,-46078.47070007,0.00014,2]
[328939959,1718017843870,-2962.28790873,0.00014,2]
[328939960,1718017843881,-10038.03490918,0.00014,2]
[328939961,1718017843894,-78717.30314502,0.00014,2]
[328939962,1718017843906,-145731.27928414,0.00014,2]
[328939963,1718017843916,-151.9,0.0001499,2]
[328939964,1718017843925,-151.9,0.0001499,2]
[328939965,1718017843935,-151.9,0.0001499,2]
[328939966,1718017843945,-151.9,0.0001499,2]
[328939967,1718017843955,-151.9,0.0001499,2]
[328939968,1718017843965,-151.9,0.0001499,2]
[328939969,1718017843974,-634398.40286213,0.00015,2]
[328939970,1718017844284,-40095.36032493,0.00015,2]
[328939971,1718017844296,-993.12736041,0.00015,2]
[328939975,1718017844790,-17649.30776945,0.00015,2]
[328939976,1718017844802,-22224.08937347,0.00015,2]
[328939977,1718017844814,-833.55550366,0.00015,2]
[328939978,1718017845187,-485.85127002,0.00015,2]
[328939979,1718017845200,-2849.54222807,0.00015,2]
[328939980,1718017845212,-15040.26670918,0.00015,2]
[328939981,1718017845224,-512795.58243126,0.00015,2]
[328939982,1718017845391,-1791.38472777,0.00015,2]
[328940169,1718017847520,-626.86484445,0.00015,2]
[328940174,1718017847562,-980.90685764,0.00015,2]
[328940177,1718017847574,-3053.33113787,0.00015,2]
[328940227,1718017848147,-422.24066894,0.00015,2]
[328940230,1718017848159,-335.35420058,0.00015,2]
[328940232,1718017848172,-1065.18041574,0.00015,2]
[328940234,1718017848188,-273.63085231,0.00015,2]
[328940237,1718017848199,-645.19282453,0.00015,2]
[328940239,1718017848210,-449.2575053,0.00015,2]
[328940247,1718017848275,-11236.08563993,0.00015,2]
[328940249,1718017848287,-144143.11055126,0.00015,2]
[328942605,1718017873861,-847.21999759,0.00014999,2]
[328942608,1718017873890,-277.43323922,0.00014999,2]
[328942612,1718017873919,-19875.34676319,0.00015,2]
[328943784,1718018399878,-162.64291502,0.00013839,2]
[328943785,1718018399904,-345.72385954,0.0001384,2]
[328943786,1718018399928,-4615.31940654,0.00013841,2]
[328943787,1718018399953,-161.94729935,0.00013944,2]
[328943788,1718018399979,-957.98460544,0.0001425,2]
[328943789,1718018400005,-174.0,0.00014996,2]
[328943790,1718018400031,-166.65902904,0.00014997,2]
[328943791,1718018400056,-1053.10914453,0.00014997,2]
[328943792,1718018400083,-238.21449077,0.00014998,2]
[328943793,1718018400111,-35465.53151691,0.00014999,2]
[328943794,1718018400138,-25408.86773286,0.00015,2]
[328943797,1718018759220,-1992.55811252,0.00014885,2]
[328943798,1718018759248,-233.94434623,0.000149,2]
[328943799,1718018759276,-387.89975871,0.00014985,2]
[328943800,1718018759301,-345.57209114,0.00014999,2]
[328943801,1718018759326,-162.98090793,0.00014999,2]
[328943802,1718018759353,-196877.04478347,0.00015,2]
[328943803,1718018763918,-50000.0,0.00015,2]
[328943804,1718018965140,-6401.18921269,0.00014899,2]
[328943805,1718018965163,-2500.0,0.000149,2]
[328943806,1718018965188,-1000.0,0.000149,2]
[328943807,1718018965211,-39079.64198731,0.0001499,2]
[328943808,1718018967151,-41091.687,0.0001499,2]
[328943857,1718019032741,-3000.0,0.0001485,2]
[328943858,1718019032751,-2873.53360422,0.0001499,2]
[328943859,1718019032764,-155.35028117,0.0001499,2]
[328943860,1718019032775,-205192.91117572,0.00015,2]
[328943861,1718019032785,-1042.87918512,0.00015,2]
[328943862,1718019032794,-1355.65999915,0.00015,2]
[328943863,1718019032805,-189.3,0.00016361,2]
[328943864,1718019032814,-250.0,0.00016452,2]
[328943865,1718019032824,-1806.44529912,0.000165,2]
[328943866,1718019032834,-158.44,0.00016906,2]
[328943867,1718019032844,-3000.0,0.0001735,2]
[328943868,1718019032853,-299.99,0.00017808,4]
[328943869,1718019032863,-1459.91811195,0.00018,2]
[328943870,1718019032873,-204.70130296,0.0001896,2]
[328943871,1718019032883,-634.0,0.0001906,2]
[328943872,1718019032894,-500.0,0.00019178,2]
[328943873,1718019032904,-500.0,0.00019178,2]
[328943874,1718019032915,-413.06618171,0.00019178,2]
[328943875,1718019032926,-168.39,0.00019189,2]
[328943876,1718019032935,-181.43,0.00019328,2]
[328943877,1718019032945,-625.0,0.000194,2]
[328943878,1718019032955,-3000.0,0.0001985,2]
[328943879,1718019032980,-1884.0,0.0002,2]
[328943880,1718019032992,-158.49794651,0.0002,2]
[328943881,1718019033002,-226.69645122,0.000201,2]
[328943882,1718019033012,-174.72,0.00020366,2]
[328943883,1718019033022,-204.7013029,0.00020523,2]
[328943884,1718019033032,-1337.76,0.00020748,2]
[328943885,1718019033042,-168.18,0.00020823,2]
[328943886,1718019033052,-1000.0,0.00020869,2]
[328943887,1718019033063,-250.0,0.0002091,2]
[328943888,1718019033072,-649.27,0.0002104,2]
[328943889,1718019033082,-11128.75,0.00021124,2]
[328943890,1718019033099,-255.01,0.00021132,2]
[328943891,1718019033280,-167.0,0.00021185,2]
[328943892,1718019033290,-157.68,0.00021248,2]